Workbook

Sheet Лист1
A1: Школа | C1: МБОУ " Уруссинская гимназия" | F1: Утвердил: | G1: должность | H1: Директор
A2: Типовое примерное меню приготавливаемых блюд | G2: фамилия | H2: Белалова Г.Н.
A3: Возрастная категория | E3: 7-11 лет | G3: дата | H3: 1 | I3: 9 | J3: 2025
H4: день | I4: месяц | J4: год
A5: Неделя | B5: День недели | C5: Прием пищи | D5: Раздел меню | E5: Блюда | F5: Вес блюда, г | G5: Белки | H5: Жиры | I5: Углеводы | J5: Калорийность | K5: № рецептуры | L5: Цена
A6: 1 | B6: 1 | C6: Завтрак | D6: гор.блюдо | E6: Котлеты "Школьные" с соусом сметанным и томатом | F6: 100 | G6: 4.8 | H6: 10.5 | I6: 9.01 | J6: 110.2 | K6: 347
D7: гор.блюдо | E7: Пюре гороховое с маслом 150/5 | F7: 155 | G7: 8.8 | H7: 5.64 | I7: 32.56 | J7: 259.9 | K7: 183
D8: гор.напиток | E8: Чай с сахаром | F8: 200 | G8: 0.2 | H8: 0 | I8: 9.10 | J8: 36.00 | K8: 300
D9: салат | E9: Салат из белокочанной капусты | F9: 60 | G9: 1.3 | H9: 2.7 | I9: 6.2 | J9: 57 | K9: 6
D10: хлеб бел. | E10: Хлеб пшеничный | F10: 30 | G10: 2.28 | H10: 0.24 | I10: 14.76 | J10: 70.2 | K10: 573
D11: хлеб черн. | E11: Хлеб ржаной (ржано-пшеничный) | F11: 20 | G11: 1.36 | H11: 0.26 | I11: 7.96 | J11: 39.6 | K11: 574
D15: итого | F15: =SUM(F6:F14) -> 565 | G15: =SUM(G6:G14) -> 18.74 | H15: =SUM(H6:H14) -> 19.34 | I15: =SUM(I6:I14) -> 79.59 | J15: =SUM(J6:J14) -> 572.9 | L15: =SUM(L6:L14) -> 0
A16: =A6 -> 1 | B16: =B6 -> 1 | C16: Обед | D16: закуска
D17: 1 блюдо
D18: 2 блюдо
D19: гарнир
D20: напиток
D21: хлеб бел.
D22: хлеб черн.
D25: итого | F25: =SUM(F16:F24) -> 0 | G25: =SUM(G16:G24) -> 0 | H25: 0 | I25: 0 | J25: 0 | L25: =SUM(L16:L24) -> 0
A26: =A6 -> 1 | B26: =B6 -> 1 | C26: Итого за день: | F26: =F15+F25 -> 565 | G26: =G15+G25 -> 18.74 | H26: 19.34 | I26: 79.59 | J26: 572.9 | L26: =L15+L25 -> 0
A27: 1 | B27: 2 | C27: Завтрак | D27: гор.блюдо | E27: Биточки рыбные с соусом | F27: 100 | G27: 8.8 | H27: 12.55 | I27: 8.47 | J27: 134.6 | K27: 83
D28: гор.блюдо | E28: Макаронные изделия отварные с маслом 150/5 | F28: 155 | G28: 5.42 | H28: 3.67 | I28: 20.1 | J28: 194.2 | K28: 227
D29: напиток | E29: Компот из сухофруктов | F29: 200 | G29: 0.5 | H29: 0.1 | I29: 30.9 | J29: 123 | K29: 310
D31: хлеб бел. | E31: Хлеб пшеничный | F31: 30 | G31: 2.28 | H31: 0.24 | I31: 14.76 | J31: 70.2 | K31: 573
D32: хлеб черн. | E32: хлеб ржаной ( ржано-пшеничный) | F32: 20 | G32: 1.36 | H32: 0.26 | I32: 7.96 | J32: 39.6 | K32: 574
D36: итого | F36: =SUM(F27:F35) -> 505 | G36: =SUM(G27:G35) -> 18.36 | H36: =SUM(H27:H35) -> 16.82 | I36: =SUM(I27:I35) -> 82.19 | J36: =SUM(J27:J35) -> 561.6 | L36: 0
A37: =A27 -> 1 | B37: =B27 -> 2 | C37: Обед | D37: закуска
D38: 1 блюдо
D39: 2 блюдо
D40: гарнир
D41: напиток
D42: хлеб бел.
D43: хлеб черн.
D46: итого | F46: =SUM(F37:F45) -> 0 | G46: =SUM(G37:G45) -> 0 | H46: =SUM(H37:H45) -> 0 | I46: =SUM(I37:I45) -> 0 | J46: =SUM(J37:J45) -> 0 | L46: 0
A47: =A27 -> 1 | B47: =B27 -> 2 | C47: Итого за день: | F47: =F36+F46 -> 505 | G47: =G36+G46 -> 18.36 | H47: =H36+H46 -> 16.82 | I47: =I36+I46 -> 82.19 | J47: =J36+J46 -> 561.6 | L47: 0
A48: 1 | B48: 3 | C48: Завтрак | D48: гор.блюдо | E48: Плов из птицы | F48: 200 | G48: 12.3 | H48: 15.2 | I48: 28.5 | J48: 296 | K48: 138
D50: гор.напиток | E50: Чай с сахаром | F50: 200 | G50: 0.2 | H50: 0 | I50: 9.1 | J50: 36 | K50: 300
D51: хлеб бел. | E51: Хлеб пшеничный | F51: 30 | G51: 2.28 | H51: 0.24 | I51: 14.76 | J51: 70.2 | K51: 573
D52: хлеб черн. | E52: Хлеб ржаной (ржано-пшеничный) | F52: 20 | G52: 1.36 | H52: 0.26 | I52: 7.96 | J52: 39.6 | K52: 574
D53: фрукты | E53: Фрукты свежие | F53: 100 | G53: 0.4 | H53: 0.4 | I53: 9.8 | J53: 47 | K53: 338
D56: итого | F56: =SUM(F48:F55) -> 550 | G56: =SUM(G48:G55) -> 16.54 | H56: =SUM(H48:H55) -> 16.1 | I56: =SUM(I48:I55) -> 70.12 | J56: =SUM(J48:J55) -> 488.8 | L56: =SUM(L48:L55) -> 0
A57: =A48 -> 1 | B57: =B48 -> 3 | C57: Обед | D57: закуска
D58: 1 блюдо
D59: 2 блюдо
D60: гарнир
D61: напиток
D62: хлеб бел.
D63: хлеб черн.
D66: итого | F66: =SUM(F57:F65) -> 0 | G66: =SUM(G57:G65) -> 0 | H66: =SUM(H57:H65) -> 0 | I66: =SUM(I57:I65) -> 0 | J66: =SUM(J57:J65) -> 0 | L66: 0
A67: =A48 -> 1 | B67: =B48 -> 3 | C67: Итого за день: | F67: =F56+F66 -> 550 | G67: =G56+G66 -> 16.54 | H67: =H56+H66 -> 16.1 | I67: =I56+I66 -> 70.12 | J67: =J56+J66 -> 488.8 | L67: 0
A68: 1 | B68: 4 | C68: Завтрак | D68: гор.блюдо | E68: Фрикадельки куриные тушенные в соусе | F68: 90 | G68: 4.5 | H68: 9.98 | I68: 5.7 | J68: 77.7 | K68: 134
D69: гор.блюдо | E69: Каша пшеничная рассыпчатая с маслом 150/5 | F69: 155 | G69: 6.67 | H69: 4.08 | I69: 39.17 | J69: 217.5 | K69: 185
D70: гор.напиток | E70: Чай с сахаром | F70: 200 | G70: 0.2 | H70: 0 | I70: 9.1 | J70: 36 | K70: 300
D71: салат | E71: Салат из свеклы с растительным маслом | F71: 60 | G71: 1 | H71: 4.8 | I71: 5 | J71: 69 | K71: 25
D72: хлеб бел. | E72: Хлеб пшеничный | F72: 30 | G72: 2.28 | H72: 0.24 | I72: 14.76 | J72: 70.2 | K72: 573
D73: хлеб черн. | E73: Хлеб ржаной ( ржано-пшеничный) | F73: 20 | G73: 1.36 | H73: 0.26 | I73: 7.96 | J73: 39.6 | K73: 574
D77: итого | F77: =SUM(F68:F76) -> 555 | G77: =SUM(G68:G76) -> 16.01 | H77: =SUM(H68:H76) -> 19.36 | I77: =SUM(I68:I76) -> 81.69 | J77: =SUM(J68:J76) -> 510 | L77: 0
A78: =A68 -> 1 | B78: =B68 -> 4 | C78: Обед | D78: закуска
D79: 1 блюдо
D80: 2 блюдо
D81: гарнир
D82: напиток
D83: хлеб бел.
D84: хлеб черн.
D87: итого | F87: =SUM(F78:F86) -> 0 | G87: =SUM(G78:G86) -> 0 | H87: =SUM(H78:H86) -> 0 | I87: =SUM(I78:I86) -> 0 | J87: =SUM(J78:J86) -> 0 | L87: 0
A88: =A68 -> 1 | B88: =B68 -> 4 | C88: Итого за день: | F88: =F77+F87 -> 555 | G88: =G77+G87 -> 16.01 | H88: =H77+H87 -> 19.36 | I88: =I77+I87 -> 81.69 | J88: =J77+J87 -> 510 | L88: 0
A89: 1 | B89: 5 | C89: Завтрак | D89: гор.блюдо | E89: Гречка с курицей по-купечески | F89: 200 | G89: 13.42 | H89: 13.67 | I89: 33.3 | J89: 294.2 | K89: 139
D91: гор.напиток | E91: Чай с сахаром | F91: 200 | G91: 0.2 | H91: 0 | I91: 9.1 | J91: 36 | K91: 300
D92: хлеб бел. | E92: Хлеб пшеничный | F92: 30 | G92: 2.28 | H92: 0.24 | I92: 14.76 | J92: 70.2 | K92: 573
D93: хлеб черн. | E93: Хлеб ржаной (ржано-пшеничный) | F93: 20 | G93: 1.36 | H93: 0.26 | I93: 7.96 | J93: 39.6 | K93: 574
D94: салат | E94: Салат из моркови | F94: 60 | G94: 0.6 | H94: 2.3 | I94: 5 | J94: 72 | K94: 17
D97: итого | F97: =SUM(F89:F96) -> 510 | G97: =SUM(G89:G96) -> 17.86 | H97: =SUM(H89:H96) -> 16.47 | I97: =SUM(I89:I96) -> 70.12 | J97: =SUM(J89:J96) -> 512 | L97: =SUM(L89:L96) -> 0
A98: =A89 -> 1 | B98: =B89 -> 5 | C98: Обед | D98: закуска
D99: 1 блюдо
D100: 2 блюдо
D101: гарнир
D102: напиток
D103: хлеб бел.
D104: хлеб черн.
D107: итого | F107: =SUM(F98:F106) -> 0 | G107: =SUM(G98:G106) -> 0 | H107: =SUM(H98:H106) -> 0 | I107: =SUM(I98:I106) -> 0 | J107: =SUM(J98:J106) -> 0 | L107: 0
A108: 1 | B108: 5 | C108: Итого за день: | F108: =SUM(F107,F97) -> 510 | G108: =SUM(G107,G97) -> 17.86 | H108: 16.47 | I108: 70.12 | J108: 512 | L108: =L78+L88 -> 0
A109: 1 | B109: 6 | C109: Завтрак | D109: гор.блюдо | E109: Птица тушенная в сосуе | F109: 100 | G109: 8.5 | H109: 12.84 | I109: 19.9 | J109: 162 | K109: 290
D110: гор.блюдо | E110: Каша ячневая рассыпчатая с маслом | F110: 155 | G110: 4.83 | H110: 4 | I110: 30.25 | J110: 186.7 | K110: 188
D111: гор.напиток | E111: Чай с сахаром | F111: 200 | G111: 0.2 | H111: 0 | I111: 9.1 | J111: 36 | K111: 300
D112: хлеб бел. | E112: Хлеб пшеничный | F112: 30 | G112: 2.28 | H112: 0.24 | I112: 14.76 | J112: 70.2 | K112: 573
D113: хлеб черн. | E113: Хлеб ржаной (ржано-пшеничный) | F113: 20 | G113: 1.36 | H113: 0.26 | I113: 7.96 | J113: 39.6 | K113: 574
D117: итого | F117: =SUM(F109:F116) -> 505 | G117: =SUM(G109:G116) -> 17.17 | H117: =SUM(H109:H116) -> 17.34 | I117: =SUM(I109:I116) -> 81.97 | J117: =SUM(J109:J116) -> 494.5 | L117: =SUM(L109:L116) -> 0
A118: =A109 -> 1 | B118: =B109 -> 6 | C118: Обед | D118: закуска
D119: 1 блюдо
D120: 2 блюдо
D121: гарнир
D122: напиток
D123: хлеб бел.
D124: хлеб черн.
D127: итого | F127: =SUM(F118:F126) -> 0 | G127: =SUM(G118:G126) -> 0 | H127: 0 | I127: 0 | J127: 0 | L127: =SUM(L118:L126) -> 0
A128: 1 | B128: 6 | C128: Итого за день: | F128: =SUM(F127,F117) -> 505 | G128: =SUM(G127,G117) -> 17.17 | H128: =SUM(H127,H117) -> 17.34 | I128: =SUM(I127,I117) -> 81.97 | J128: =SUM(J127,J117) -> 494.5 | L128: =L98+L108 -> 0
A129: 2 | B129: 1 | C129: завтрак | D129: гор.блюдо | E129: Тефтели говяжьи с соусом | F129: 90 | G129: 8.6 | H129: 14.3 | I129: 10.3 | J129: 177.1 | K129: 110
D130: гор.блюдо | E130: Макаронные изделия отварные с масло 150/5 | F130: 155 | G130: 5.42 | H130: 3.67 | I130: 20.1 | J130: 194.2 | K130: 227
D131: гор.напиток | E131: Чай с сахаром | F131: 200 | G131: 0.2 | H131: 0 | I131: 9.1 | J131: 36 | K131: 300
D132: хлеб бел. | E132: Хлеб пшеничный | F132: 30 | G132: 2.28 | H132: 0.24 | I132: 14.76 | J132: 70.2 | K132: 573
D133: хлеб черн. | E133: Хлеб ржаной (ржано-пшеничный) | F133: 20 | G133: 1.36 | H133: 0.26 | I133: 7.96 | J133: 39.6 | K133: 574
D134: фрукты | E134: Фрукты свежие | F134: 100 | G134: 0.4 | H134: 0.4 | I134: 9.8 | J134: 47 | K134: 338
D137: итого | F137: =SUM(F129:F136) -> 595 | G137: =SUM(G129:G136) -> 18.26 | H137: 18.87 | I137: 72.02 | J137: 564.1 | L137: =SUM(L128:L136) -> 0
A138: 2 | B138: 1 | C138: Обед | D138: закуска
D139: 1 блюдо
D140: 2 блюдо
D141: гарнир
D142: напиток
D143: хлеб бел.
D144: хлеб черн.
D147: итого | F147: =SUM(F138:F146) -> 0 | G147: =SUM(G138:G146) -> 0 | H147: 0 | I147: 0 | J147: 0 | L147: =SUM(L138:L146) -> 0
A148: =A128 -> 1 | B148: =B128 -> 6 | C148: Итого за день: | F148: =F137+F147 -> 595 | G148: =G137+G147 -> 18.26 | H148: =H137+H147 -> 18.87 | I148: =I137+I147 -> 72.02 | J148: =J137+J147 -> 564.1 | L148: 0
A149: 2 | B149: 2 | C149: Завтрак | D149: гор.блюдо | E149: Котлеты "Школьные" с соусом сметанным и томатом | F149: 100 | G149: 4.8 | H149: 10.5 | I149: 9.01 | J149: 110.2 | K149: 347
D150: гор.блюдо | E150: Каша гречневая рассыпчатая с маслом 150/5 | F150: 155 | G150: 8.83 | H150: 5.67 | I150: 32.58 | J150: 260 | K150: 183
D151: гор.напиток | E151: Чай с сахаром | F151: 200 | G151: 0.2 | H151: 0 | I151: 9.1 | J151: 36 | K151: 300
D152: хлеб бел. | E152: Хлеб пшеничный | F152: 30 | G152: 2.28 | H152: 0.24 | I152: 14.76 | J152: 70.2 | K152: 573
D153: хлеб черн. | E153: Хлеб ржаной (ржано-пшеничный) | F153: 20 | G153: 1.36 | H153: 0.26 | I153: 7.96 | J153: 39.6 | K153: 574
D157: итого | F157: =SUM(F149:F156) -> 505 | G157: =SUM(G149:G156) -> 17.47 | H157: 16.67 | I157: 73.41 | J157: 516 | L157: =SUM(L149:L156) -> 0
A158: =A149 -> 2 | B158: =B149 -> 2 | C158: Обед | D158: закуска
D159: 1 блюдо
D160: 2 блюдо
D161: гарнир
D162: напиток
D163: хлеб бел.
D164: хлеб черн.
D167: итого | F167: =SUM(F158:F166) -> 0 | G167: =SUM(G158:G166) -> 0 | H167: 0 | I167: 0 | J167: 0 | L167: =SUM(L158:L166) -> 0
A168: =A149 -> 2 | B168: =B149 -> 2 | C168: Итого за день: | F168: =F157+F167 -> 505 | G168: =G157+G167 -> 17.47 | H168: =H157+H167 -> 16.67 | I168: =I157+I167 -> 73.41 | J168: =J157+J167 -> 516 | L168: 0
A169: 2 | B169: 3 | C169: Завтрак | D169: гор.блюдо | E169: Биточки рыбные с соусом | F169: 100 | G169: 8.8 | H169: 12.55 | I169: 8.47 | J169: 134.6 | K169: 83
D170: гор.блюдо | E170: Картофельное пюре | F170: 150 | G170: 3.08 | H170: 3.7 | I170: 32.03 | J170: 190.25 | K170: 146
D171: гор.напиток | E171: Чай с лимоном и сахаром | F171: 200 | G171: 0.2 | H171: 0 | I171: 9.3 | J171: 38 | K171: 302
D172: салат | E172: Салат из моркови | F172: 60 | G172: 0.6 | H172: 2.3 | I172: 5 | J172: 72 | K172: 17
D173: хлеб бел. | E173: Хлеб пшеничный | F173: 30 | G173: 2.28 | H173: 0.24 | I173: 14.76 | J173: 70.2 | K173: 573
D174: хлеб черн. | E174: Хлеб ржаной (ржано-пшеничный) | F174: 20 | G174: 1.36 | H174: 0.26 | I174: 7.96 | J174: 39.6 | K174: 574
D178: итого | F178: =SUM(F169:F177) -> 560 | G178: =SUM(G169:G177) -> 16.32 | H178: 19.05 | I178: 77.52 | J178: 544.65 | L178: =SUM(L169:L177) -> 0
A179: =A169 -> 2 | B179: =B169 -> 3 | C179: Обед | D179: закуска
D180: 1 блюдо
D181: 2 блюдо
D182: гарнир
D183: напиток
D184: хлеб бел.
D185: хлеб черн.
D188: итого | F188: =SUM(F179:F187) -> 0 | G188: =SUM(G179:G187) -> 0 | H188: 0 | I188: 0 | J188: 0 | L188: =SUM(L179:L187) -> 0
A189: =A169 -> 2 | B189: =B169 -> 3 | C189: Итого за день: | F189: =F178+F188 -> 560 | G189: =G178+G188 -> 16.32 | H189: =H178+H188 -> 19.05 | I189: =I178+I188 -> 77.52 | J189: =J178+J188 -> 544.65 | L189: 0
A190: 2 | B190: 4 | C190: Завтрак | D190: гор.блюдо | E190: Плов из птицы | F190: 200 | G190: 12.2 | H190: 13.2 | I190: 22.2 | J190: 267 | K190: 138
D192: напиток | E192: Компот из сухофруктов | F192: 200 | G192: 0.5 | H192: 0.1 | I192: 30.9 | J192: 123 | K192: 310
D193: салат | E193: Салат из свеклы с растительным маслом | F193: 60 | G193: 1 | H193: 4.8 | I193: 5 | J193: 69 | K193: 25
D194: хлеб бел. | E194: Хлеб пшеничный | F194: 30 | G194: 2.28 | H194: 0.24 | I194: 14.76 | J194: 70.2 | K194: 573
D195: хлеб черн. | E195: Хлеб ржаной (ржано-пшеничный) | F195: 20 | G195: 1.36 | H195: 0.26 | I195: 7.96 | J195: 39.6 | K195: 574
D199: итого | F199: =SUM(F190:F198) -> 510 | G199: =SUM(G190:G198) -> 17.34 | H199: 18.6 | I199: 80.82 | J199: 568.8 | L199: =SUM(L190:L198) -> 0
A200: =A190 -> 2 | B200: =B190 -> 4 | C200: Обед | D200: закуска
D201: 1 блюдо
D202: 2 блюдо
D203: гарнир
D204: напиток
D205: хлеб бел.
D206: хлеб черн.
D209: итого | F209: =SUM(F200:F208) -> 0 | G209: =SUM(G200:G208) -> 0 | H209: 0 | I209: 0 | J209: 0 | L209: =SUM(L200:L208) -> 0
A210: =A190 -> 2 | B210: =B190 -> 4 | C210: Итого за день: | F210: =F199+F209 -> 510 | G210: =G199+G209 -> 17.34 | H210: =H199+H209 -> 18.6 | I210: =I199+I209 -> 80.82 | J210: =J199+J209 -> 568.8 | L210: 0
A211: 2 | B211: 5 | C211: Завтрак | D211: гор.блюдо | E211: Фрикадельки куриные тушенные в соусе | F211: 90 | G211: 4.5 | H211: 9.98 | I211: 5.7 | J211: 77.7 | K211: 134
D212: гор.блюдо | E212: Каша гречневая рассыпчатая с маслом 150/5 | F212: 155 | G212: 8.83 | H212: 5.67 | I212: 32.58 | J212: 260 | K212: 183
D213: гор.напиток | E213: Чай с сахаром | F213: 200 | G213: 0.2 | H213: 0 | I213: 9.1 | J213: 36 | K213: 300
D215: хлеб бел. | E215: Хлеб пшеничный | F215: 30 | G215: 2.28 | H215: 0.24 | I215: 14.76 | J215: 70.2 | K215: 573
D216: хлеб черн. | E216: Хлеб ржаной (ржано-пшеничный) | F216: 20 | G216: 1.36 | H216: 0.26 | I216: 7.96 | J216: 39.6 | K216: 574
D217: фрукты | E217: Фрукты свежие | F217: 100 | G217: 0.4 | H217: 0.4 | I217: 9.8 | J217: 47 | K217: 338
D220: итого | F220: =SUM(F211:F219) -> 595 | G220: =SUM(G211:G219) -> 17.57 | H220: 16.55 | I220: 79.9 | J220: 530.5 | L220: =SUM(L211:L219) -> 0
A221: =A211 -> 2 | B221: =B211 -> 5 | C221: Обед | D221: закуска
D222: 1 блюдо
D223: 2 блюдо
D224: гарнир
D225: напиток
D226: хлеб бел.
D227: хлеб черн.
D230: итого | F230: 0 | G230: 0 | H230: 0 | I230: 0 | J230: 0 | L230: =SUM(L217:L225) -> 0
A231: =A207 -> 0 | B231: =B207 -> 0 | C231: Итого за день: | F231: =SUM(F220) -> 595 | G231: =SUM(G220) -> 17.57 | H231: 16.55 | I231: 79.9 | J231: 530.5 | L231: =L216+L230 -> 0
A232: 2 | B232: 6 | C232: Завтрак | D232: гор.блюдо | E232: Птица тушенная в соусе | F232: 100 | G232: 8.5 | H232: 12.84 | I232: 19.9 | J232: 162.0 | K232: 290
D233: гор.блюдо | E233: Макаронные изделия отварные с маслом 150/5 | F233: 155 | G233: 5.42 | H233: 3.67 | I233: 20.10 | J233: 194.2 | K233: 227
D234: гор.напиток | E234: Чай с сахаром | F234: 200 | G234: 0.2 | H234: 0 | I234: 9.1 | J234: 36 | K234: 300
D236: хлеб бел. | E236: Хлеб пшеничный | F236: 30 | G236: 2.28 | H236: 0.24 | I236: 14.76 | J236: 70.2 | K236: 573
D237: хлеб черн. | E237: Хлеб ржаной (ржано-пшеничный) | F237: 20 | G237: 1.36 | H237: 0.26 | I237: 7.96 | J237: 39.6 | K237: 574
D241: итого | F241: =SUM(F232:F240) -> 505 | G241: =SUM(G232:G240) -> 17.76 | H241: 17.01 | I241: 71.82 | J241: 502 | L241: =SUM(L232:L240) -> 0
A242: =A232 -> 2 | B242: =B232 -> 6 | C242: Обед | D242: закуска
D243: 1 блюдо
D244: 2 блюдо
D245: гарнир
D246: напиток
D247: хлеб бел.
D248: хлеб черн.
D251: итого | F251: 0 | G251: 0 | H251: 0 | I251: 0 | J251: 0 | L251: =SUM(L238:L246) -> 0
A252: =A228 -> 0 | B252: =B228 -> 0 | C252: Итого за день: | F252: =SUM(F241) -> 505 | G252: =SUM(G241) -> 17.76 | H252: 17.01 | I252: 71.82 | J252: 502 | L252: =L237+L251 -> 0
